fUST/lending_fUST_20250215
["ID","MTS","AMOUNT","RATE_DAILY","PERIOD"]
[353173626,1739628632441,-500.0,8.899e-05,2]
[353173627,1739628632454,-596.99379359,8.899e-05,2]
[353173628,1739628632466,-500.0,8.899e-05,2]
[353173629,1739628632478,-500.0,8.899e-05,2]
[353173630,1739628632489,-500.0,8.899e-05,2]
[353173631,1739628632500,-500.0,8.899e-05,2]
[353173632,1739628632514,-500.0,8.899e-05,2]
[353173633,1739628632528,-500.0,8.899e-05,2]
[353173634,1739628632542,-500.0,8.899e-05,2]
[353173635,1739628632554,-500.0,8.899e-05,2]
[353173636,1739628632569,-500.0,8.899e-05,2]
[353173637,1739628632580,-500.0,8.899e-05,2]
[353173638,1739628632592,-177.01839919,8.899e-05,2]
[353173639,1739628632604,-500.0,8.899e-05,2]
[353173640,1739628632617,-500.0,8.899e-05,2]
[353173641,1739628632629,-500.0,8.899e-05,2]
[353173642,1739628632642,-500.0,8.899e-05,2]
[353173643,1739628632655,-190.86677075,8.899e-05,2]
[353173644,1739628632667,-500.0,8.899e-05,2]
[353173645,1739628632679,-500.0,8.899e-05,2]
[353173646,1739628632691,-500.0,8.899e-05,2]
[353173647,1739628632703,-500.0,8.899e-05,2]
[353173648,1739628632715,-500.0,8.899e-05,2]
[353173649,1739628632727,-500.0,8.899e-05,2]
[353173650,1739628632739,-500.0,8.899e-05,2]
[353173651,1739628632750,-500.0,8.899e-05,2]
[353173652,1739628632762,-500.0,8.899e-05,2]
[353173653,1739628632773,-500.0,8.899e-05,2]
[353173654,1739628632785,-500.0,8.899e-05,2]
[353173655,1739628632796,-350.0,8.899e-05,2]
[353173656,1739628632808,-500.0,8.899e-05,2]
[353173657,1739628632819,-710.39,8.899e-05,2]
[353173658,1739628632831,-608.94,8.899e-05,2]
[353173659,1739628632844,-626.62,8.899e-05,2]
[353173660,1739628632855,-1139.43,8.899e-05,2]
[353173661,1739628632867,-1070.48,8.899e-05,2]
[353173662,1739628632879,-634.29,8.899e-05,2]
[353173663,1739628632890,-500.0,8.899e-05,2]
[353173664,1739628632902,-500.0,8.899e-05,2]
[353173665,1739628632914,-500.0,8.899e-05,2]
[353173666,1739628632925,-500.0,8.899e-05,2]
[353173667,1739628632937,-641.74,8.899e-05,2]
[353173668,1739628632949,-718.2,8.899e-05,2]
[353173669,1739628632960,-922.5,8.899e-05,2]
[353173670,1739628632972,-682.44,8.899e-05,2]
[353173671,1739628632984,-500.0,8.899e-05,2]
[353173672,1739628632996,-500.0,8.899e-05,2]
[353173673,1739628633008,-500.0,8.899e-05,2]
[353173674,1739628633020,-500.0,8.899e-05,2]
[353173675,1739628633031,-563.25,8.899e-05,2]
[353173676,1739628633044,-706.85,8.899e-05,2]
[353173677,1739628633057,-500.0,8.899e-05,2]
[353173678,1739628633069,-511.59,8.899e-05,2]
[353173679,1739628633083,-1123.77,8.899e-05,2]
[353173680,1739628633095,-513.76070148,8.899e-05,2]
[353173681,1739628633107,-500.0,8.899e-05,2]
[353173682,1739628633120,-500.0,8.899e-05,2]
[353173683,1739628633132,-500.0,8.899e-05,2]
[353173684,1739628633144,-500.0,8.899e-05,2]
[353173685,1739628633157,-682.84,8.899e-05,2]
[353173686,1739628633170,-500.0,8.899e-05,2]
[353173687,1739628633181,-503.80431141,8.899e-05,2]
[353173688,1739628633390,-4163.01,8.899e-05,2]
[353173689,1739628633401,-500.0,8.899e-05,2]
[353173690,1739628633410,-908.25727496,8.899e-05,2]
[353173691,1739628633424,-32.02272504,8.899e-05,2]
[353173692,1739628633434,-500.0,8.899e-05,2]
[353173693,1739628633445,-500.0,8.899e-05,2]
[353173694,1739628633455,-1161.05,8.899e-05,2]
[353173695,1739628633465,-500.0,8.899e-05,2]
[353173696,1739628633475,-500.0,8.899e-05,2]
[353173697,1739628633484,-2386.59652393,8.899e-05,2]
[353173698,1739628633497,-1098.41347607,8.899e-05,2]
[353173699,1739628633507,-500.0,8.899e-05,2]
[353173700,1739628633516,-500.0,8.899e-05,2]
[353173701,1739628633526,-1862.6,8.899e-05,2]
[353173702,1739628633536,-500.0,8.899e-05,2]
[353173703,1739628633545,-999.42,8.899e-05,2]
[353173704,1739628633555,-500.0,8.899e-05,2]
[353173705,1739628633568,-626.36383376,8.899e-05,2]
[353173706,1739628633577,-500.0,8.899e-05,2]
[353173707,1739628633587,-500.0,8.899e-05,2]
[353173708,1739628633596,-1561.57,8.899e-05,2]
[353173709,1739628633605,-500.0,8.899e-05,2]
[353173710,1739628633616,-574.85,8.899e-05,2]
[353173711,1739628633626,-7593.5394026,8.899e-05,2]
[353173741,1739628637832,-11061.2105974,8.899e-05,2]
[353173743,1739628637842,-1602.07,8.899e-05,2]
[353173745,1739628637852,-500.0,8.899e-05,2]
[353173747,1739628637861,-500.0,8.899e-05,2]
[353173749,1739628637871,-2206.95,8.899e-05,2]
[353173751,1739628637881,-2398.66,8.899e-05,2]
[353173753,1739628637890,-500.0,8.899e-05,2]
[353173755,1739628637900,-583.18,8.899e-05,2]
[353173757,1739628637910,-501.79540263,8.899e-05,2]
[353173760,1739628637920,-2020.76808617,8.899e-05,2]
[353173763,1739628637932,-1632.70191383,8.899e-05,2]
[353173765,1739628637941,-500.0,8.899e-05,2]
[353173767,1739628637951,-500.0,8.899e-05,2]
[353173769,1739628637960,-787.2,8.899e-05,2]
[353173771,1739628637970,-239.01300464,8.899e-05,2]
[353173773,1739628637980,-500.0,8.899e-05,2]
[353173775,1739628637989,-500.0,8.899e-05,2]
[353173777,1739628637999,-500.0,8.899e-05,2]
[353173779,1739628638008,-941.9,8.899e-05,2]
[353173781,1739628638017,-704.82,8.899e-05,2]
[353173783,1739628638027,-775.55,8.899e-05,2]
[353173785,1739628638036,-521.36,8.899e-05,2]
[353173787,1739628638045,-676.98,8.899e-05,2]
[353173789,1739628638057,-646.26,8.899e-05,2]
[353173791,1739628638066,-1668.76,8.899e-05,2]
[353173793,1739628638075,-500.0,8.899e-05,2]
[353173795,1739628638085,-500.0,8.899e-05,2]
[353173797,1739628638095,-844.82,8.899e-05,2]
[353173799,1739628638105,-500.0,8.899e-05,2]
[353173801,1739628638114,-500.0,8.899e-05,2]
[353173803,1739628638124,-1006.39,8.899e-05,2]
[353173805,1739628638133,-759.54,8.899e-05,2]
[353173807,1739628638143,-563.06,8.899e-05,2]
[353173809,1739628638153,-500.0,8.899e-05,2]
[353173811,1739628638163,-574.47,8.899e-05,2]
[353173813,1739628638172,-1124.53,8.899e-05,2]
[353173815,1739628638182,-4117.66,8.899e-05,2]
[353173817,1739628638191,-738.89,8.899e-05,2]
[353173819,1739628638201,-17102.04,8.899e-05,2]
[353173822,1739628638211,-553.12,8.899e-05,2]
[353173824,1739628638220,-500.0,8.899e-05,2]
[353173826,1739628638230,-500.0,8.899e-05,2]
[353173827,1739628638240,-1799.34,8.899e-05,2]
[353173829,1739628638249,-500.0,8.899e-05,2]
[353173831,1739628638258,-657.76,8.899e-05,2]
[353173833,1739628638268,-1374.21,8.899e-05,2]
[353173835,1739628638277,-500.0,8.899e-05,2]
[353173837,1739628638286,-502.69,8.899e-05,2]
[353173840,1739628638295,-500.0,8.899e-05,2]
[353173842,1739628638305,-125870.23820111,8.9e-05,2]
[353173845,1739628638330,-3467.63241436,8.9e-05,2]
[353174122,1739628640144,-1924.99298498,8.9e-05,2]
[353174125,1739628640155,-366.0670543,8.9e-05,2]
[353174332,1739628642243,1424.89104403,8.843e-05,2]
[353174406,1739628642927,-1472.34787608,8.9e-05,2]
[353174689,1739628645811,-500.0,8.898e-05,2]
[353174691,1739628645823,-816.03,8.898e-05,2]
[353174693,1739628645833,-3614.32,8.9e-05,2]
[353174695,1739628645845,-1431.70070756,8.9e-05,2]
[353174904,1739628699733,304.27016536,8.798e-05,2]
[353174906,1739628970996,1662.04991671,0.00013,120]
[353174979,1739629832200,-300.0,8.894e-05,2]
[353174981,1739629832209,-610.30236845,8.895e-05,2]
[353174999,1739629832371,-1075.64763155,8.895e-05,2]
[353175001,1739629832381,-1110.18,8.895e-05,2]
[353175003,1739629832391,-500.0,8.895e-05,2]
[353175006,1739629832401,-500.0,8.895e-05,2]
[353175008,1739629832410,-782.03,8.895e-05,2]
[353175010,1739629832419,-680.79,8.896e-05,2]
[353175011,1739629832428,-600.51,8.896e-05,2]
[353175014,1739629832437,-359.36420474,8.896e-05,2]
[353175016,1739629832449,-224.20579526,8.896e-05,2]
[353175018,1739629832458,-1091.95,8.896e-05,2]
[353175020,1739629832467,-500.0,8.896e-05,2]
[353175022,1739629832476,-1025.88,8.896e-05,2]
[353175024,1739629832486,-607.86,8.896e-05,2]
[353175026,1739629832495,-615.0,8.896e-05,2]
[353175028,1739629832504,-688.27,8.896e-05,2]
[353175030,1739629832513,-654.01,8.896e-05,2]
[353175032,1739629832522,-884.06,8.896e-05,2]
[353175034,1739629832531,-500.0,8.896e-05,2]
[353175036,1739629832541,-677.4,8.896e-05,2]
[353175038,1739629832550,-500.0,8.896e-05,2]
[353175040,1739629832560,-500.0,8.896e-05,2]
[353175042,1739629832569,-500.0,8.896e-05,2]
[353175044,1739629832578,-179.58268427,8.896e-05,2]
[353175046,1739629832587,-500.0,8.896e-05,2]
[353175048,1739629832597,-500.0,8.896e-05,2]
[353175050,1739629832606,-500.0,8.896e-05,2]
[353175052,1739629832615,-463.9624546,8.896e-05,2]
[353175054,1739629832624,-500.0,8.896e-05,2]
[353175056,1739629832633,-500.0,8.896e-05,2]
[353175058,1739629832642,-478.41628068,8.896e-05,2]
[353175060,1739629832651,-500.0,8.896e-05,2]
[353175062,1739629832660,-1076.95,8.896e-05,2]
[353175064,1739629832670,-500.0,8.896e-05,2]
[353175066,1739629832680,-500.0,8.896e-05,2]
[353175068,1739629832689,-1112.68,8.896e-05,2]
[353175070,1739629832698,-500.0,8.896e-05,2]
[353175072,1739629832707,-654.39,8.896e-05,2]
[353175074,1739629832717,-500.0,8.896e-05,2]
[353175076,1739629832727,-157.89091753,8.896e-05,2]
[353175078,1739629832736,-500.0,8.896e-05,2]
[353175080,1739629832746,-901.11,8.896e-05,2]
[353175082,1739629832755,-500.0,8.896e-05,2]
[353175084,1739629832765,-500.0,8.896e-05,2]
[353175086,1739629832775,-500.0,8.896e-05,2]
[353175088,1739629832784,-957.78,8.896e-05,2]
[353175090,1739629832794,-3056.40015794,8.896e-05,2]
[353175566,1739629837896,-1430.81239794,8.896e-05,2]
[353175576,1739629837981,-748.39760206,8.896e-05,2]
[353175578,1739629837990,-550.9,8.896e-05,2]
[353175580,1739629838000,-1784.99,8.896e-05,2]
[353175583,1739629838010,-500.0,8.896e-05,2]
[353175585,1739629838019,-500.0,8.896e-05,2]
[353175587,1739629838028,-1496.5,8.896e-05,2]
[353175589,1739629838038,-500.0,8.896e-05,2]
[353175591,1739629838048,-500.0,8.896e-05,2]
[353175593,1739629838058,-500.0,8.896e-05,2]
[353175594,1739629838067,-1535.32,8.896e-05,2]
[353175595,1739629838077,-3501.25,8.896e-05,2]
[353175596,1739629838087,-1586.24,8.896e-05,2]
[353175598,1739629838096,-500.0,8.896e-05,2]
[353175600,1739629838106,-500.0,8.896e-05,2]
[353175603,1739629838126,-558.88,8.896e-05,2]
[353175605,1739629838136,-675.45,8.896e-05,2]
[353175607,1739629838146,-654.9,8.896e-05,2]
[353175609,1739629838156,-500.0,8.896e-05,2]
[353175611,1739629838165,-500.0,8.896e-05,2]
[353175613,1739629838175,-282.25228485,8.896e-05,2]
[353175615,1739629838186,-2033.58,8.896e-05,2]
[353175617,1739629838195,-500.0,8.896e-05,2]
[353175619,1739629838205,-743.23,8.896e-05,2]
[353175622,1739629838215,-500.0,8.896e-05,2]
[353175624,1739629838225,-1441.24,8.896e-05,2]
[353175626,1739629838235,-1599.23,8.896e-05,2]
[353175628,1739629838244,-727.89,8.896e-05,2]
[353175630,1739629838254,-5950.37,8.896e-05,2]
[353175632,1739629838264,-1119.13,8.896e-05,2]
[353175634,1739629838274,-683.15,8.896e-05,2]
[353175636,1739629838283,-500.0,8.896e-05,2]
[353175638,1739629838292,-708.1,8.896e-05,2]
[353175640,1739629838302,-500.0,8.896e-05,2]
[353175642,1739629838311,-500.0,8.896e-05,2]
[353175644,1739629838321,-1077.68,8.896e-05,2]
[353175646,1739629838330,-500.0,8.896e-05,2]
[353175648,1739629838340,-2999.46,8.896e-05,2]
[353175650,1739629838350,-500.0,8.896e-05,2]
[353175652,1739629838359,-1511.6,8.896e-05,2]
[353175654,1739629838369,-530.07,8.896e-05,2]
[353175656,1739629838378,-1443.38,8.896e-05,2]
[353175659,1739629838388,-504.32358152,8.896e-05,2]
[353175661,1739629838397,-3946.09,8.896e-05,2]
[353175663,1739629838407,-719.86,8.896e-05,2]
[353175665,1739629838416,-500.0,8.896e-05,2]
[353175667,1739629838426,-2138.1,8.896e-05,2]
[353175669,1739629838436,-3989.56,8.896e-05,2]
[353175671,1739629838445,-500.0,8.896e-05,2]
[353175673,1739629838455,-500.0,8.896e-05,2]
[353175675,1739629838464,-500.0,8.896e-05,2]
[353175677,1739629838473,-500.0,8.896e-05,2]
[353175679,1739629838482,-1074.78,8.896e-05,2]
[353175681,1739629838491,-500.0,8.896e-05,2]
[353175683,1739629838501,-1316.95,8.896e-05,2]
[353175684,1739629838510,-3212.45,8.896e-05,2]
[353175685,1739629838520,-1832.4,8.896e-05,2]
[353175686,1739629838530,-500.0,8.897e-05,2]
[353175687,1739629838539,-500.0,8.897e-05,2]
[353175688,1739629838549,-500.0,8.897e-05,2]
[353175689,1739629838558,-500.0,8.897e-05,2]
[353175690,1739629838568,-500.0,8.897e-05,2]
[353175691,1739629838577,-539.78,8.897e-05,2]
[353175692,1739629838588,-500.0,8.897e-05,2]
[353175693,1739629838597,-184.09065981,8.897e-05,2]
[353175694,1739629838606,-500.0,8.897e-05,2]
[353175695,1739629838616,-1888.41,8.897e-05,2]
[353175696,1739629838625,-500.0,8.897e-05,2]
[353175697,1739629838635,-500.0,8.897e-05,2]
[353175698,1739629838644,-500.0,8.897e-05,2]
[353175699,1739629838816,-500.0,8.897e-05,2]
[353175700,1739629838826,-1745.36,8.897e-05,2]
[353175701,1739629838836,-500.0,8.897e-05,2]
[353175702,1739629838845,-902.65,8.897e-05,2]
[353175703,1739629838856,-500.0,8.897e-05,2]
[353175704,1739629838865,-500.0,8.897e-05,2]
[353175705,1739629838874,-648.77,8.897e-05,2]
[353175706,1739629838884,-1068.46,8.897e-05,2]
[353175707,1739629838896,-619.34,8.897e-05,2]
[353175708,1739629838906,-500.0,8.897e-05,2]
[353175709,1739629838915,-809.62,8.897e-05,2]
[353175710,1739629838924,-539.6,8.897e-05,2]
[353175711,1739629838934,-630.36,8.897e-05,2]
[353175712,1739629838945,-500.0,8.897e-05,2]
[353175713,1739629838954,-500.0,8.897e-05,2]
[353175714,1739629838964,-500.0,8.897e-05,2]
[353175715,1739629838975,-500.0,8.897e-05,2]
[353175716,1739629838985,-500.0,8.897e-05,2]
[353175717,1739629838995,-500.0,8.897e-05,2]
[353175718,1739629839004,-500.0,8.897e-05,2]
[353175719,1739629839013,-500.0,8.897e-05,2]
[353175720,1739629839022,-500.0,8.897e-05,2]
[353175721,1739629839031,-1163.01,8.897e-05,2]
[353175722,1739629839041,-500.0,8.897e-05,2]
[353175723,1739629839050,-500.0,8.897e-05,2]
[353175724,1739629839060,-500.0,8.897e-05,2]
[353175725,1739629839070,-49246.44,8.897e-05,2]
[353175726,1739629839080,-17877.47,8.897e-05,2]
[353175727,1739629839089,-2653.99,8.897e-05,2]
[353175728,1739629839098,-500.0,8.897e-05,2]
[353175729,1739629839107,-1666.11,8.897e-05,2]
[353175730,1739629839117,-2298.72,8.897e-05,2]
[353175731,1739629839127,-901.38,8.897e-05,2]
[353175732,1739629839136,-500.0,8.897e-05,2]
[353175733,1739629839145,-874.48,8.897e-05,2]
[353175734,1739629839154,-754.4,8.897e-05,2]
[353175735,1739629839163,-500.0,8.897e-05,2]
[353175736,1739629839173,-166.8647597,8.897e-05,2]
[353175737,1739629839182,-500.0,8.897e-05,2]
[353175738,1739629839191,-500.0,8.897e-05,2]
[353175739,1739629839201,-500.0,8.897e-05,2]
[353175740,1739629839210,-591.31,8.897e-05,2]
[353175741,1739629839219,-500.0,8.897e-05,2]
[353175742,1739629839229,-550.54,8.897e-05,2]
[353175743,1739629839238,-500.0,8.897e-05,2]
[353175744,1739629839247,-16389.46,8.897e-05,2]
[353175745,1739629839257,-500.0,8.897e-05,2]
[353175746,1739629839266,-500.0,8.897e-05,2]
[353175747,1739629839275,-1724.36,8.897e-05,2]
[353175748,1739629839284,-500.0,8.897e-05,2]
[353175749,1739629839293,-500.0,8.897e-05,2]
[353175750,1739629839302,-500.0,8.897e-05,2]
[353175751,1739629839312,-500.0,8.897e-05,2]
[353175752,1739629839321,-500.0,8.898e-05,2]
[353175753,1739629839331,-715.95,8.898e-05,2]
[353175754,1739629839340,-500.0,8.898e-05,2]
[353175755,1739629839349,-500.0,8.898e-05,2]
[353175756,1739629839359,-500.0,8.898e-05,2]
[353175757,1739629839368,-500.0,8.898e-05,2]
[353175758,1739629839377,-578.16,8.898e-05,2]
[353175759,1739629839387,-500.0,8.898e-05,2]
[353175760,1739629839396,-1078.07,8.898e-05,2]
[353175761,1739629839406,-500.0,8.898e-05,2]
[353175762,1739629839415,-500.0,8.898e-05,2]
[353175763,1739629839424,-500.0,8.898e-05,2]
[353175764,1739629839434,-1884.36,8.898e-05,2]
[353175765,1739629839443,-674.42,8.898e-05,2]
[353175766,1739629839453,-166.8647597,8.899e-05,2]
[353175767,1739629839462,-828.43,8.899e-05,2]
[353175768,1739629839471,-500.0,8.899e-05,2]
[353175769,1739629839481,-502.81675813,8.899e-05,2]
[353175770,1739629839490,-609.89194334,8.899e-05,2]
[353175771,1739629839499,-43925.17572941,8.9e-05,2]
[353175772,1739629839509,-62618.36821295,8.9e-05,2]
[353175894,1739629840920,-500.0,8.896e-05,2]
[353175896,1739629840931,-85928.93899767,8.9e-05,2]
[353176313,1739629845995,-2088.41,8.895e-05,2]
[353176314,1739629846005,-500.0,8.895e-05,2]
[353176315,1739629846015,-206.22770967,8.9e-05,2]
[353176316,1739629846027,-10812.66813009,8.9e-05,2]
[353176322,1739629846085,-778.04757814,8.9e-05,2]
[353176324,1739629846097,-9873.0635,8.9e-05,2]
[353176327,1739629846109,-1757.83,8.9e-05,2]
[353176682,1739630618259,16352.7252519,7.896e-05,2]
[353176683,1739630635883,1464.05,0.00019,120]
[353176684,1739630681128,150.0,0.00019,120]
[353176691,1739630935833,1000.0,0.00019,120]
[353176769,1739631038222,-300.0,8.891e-05,2]
[353176771,1739631038233,-512.07770151,8.892e-05,2]
[353176773,1739631038247,-2156.7,8.892e-05,2]
[353176776,1739631038258,-1063.92,8.892e-05,2]
[353176778,1739631038267,-240.94198558,8.892e-05,2]
[353176781,1739631038281,-259.46286908,8.892e-05,2]
[353176783,1739631038290,-500.0,8.892e-05,2]
[353176785,1739631038300,-502.9218409,8.892e-05,2]
[353177074,1739631046646,-51.0281591,8.892e-05,2]
[353177075,1739631046659,-500.0,8.892e-05,2]
[353177076,1739631046669,-500.52466538,8.892e-05,2]
[353177077,1739631046678,-500.600797,8.892e-05,2]
[353177078,1739631046687,-500.0,8.892e-05,2]
[353177079,1739631046697,-500.0,8.892e-05,2]
[353177080,1739631046706,-500.0,8.892e-05,2]
[353177081,1739631046716,-500.64141111,8.892e-05,2]
[353177082,1739631046725,-500.0,8.893e-05,2]
[353177083,1739631046735,-821.31,8.893e-05,2]
[353177084,1739631046744,-500.0,8.893e-05,2]
[353177085,1739631046754,-500.0,8.893e-05,2]
[353177086,1739631046764,-500.0,8.893e-05,2]
[353177087,1739631046773,-500.0,8.893e-05,2]
[353177088,1739631046783,-500.0,8.893e-05,2]
[353177089,1739631046792,-500.52414869,8.893e-05,2]
[353177090,1739631046802,-500.0,8.893e-05,2]
[353177091,1739631046811,-861.15,8.893e-05,2]
[353177092,1739631046820,-776.18,8.893e-05,2]
[353177093,1739631046830,-500.0,8.893e-05,2]
[353177094,1739631046840,-558.09684174,8.893e-05,2]
[353177095,1739631046849,-500.0,8.893e-05,2]
[353177096,1739631046858,-500.0,8.893e-05,2]
[353177097,1739631046868,-762.02,8.893e-05,2]
[353177098,1739631046877,-500.0,8.893e-05,2]
[353177099,1739631046887,-500.0,8.893e-05,2]
[353177100,1739631046896,-500.75050719,8.893e-05,2]
[353177101,1739631046906,-500.82354771,8.893e-05,2]
[353177102,1739631046916,-552.77,8.893e-05,2]
[353177103,1739631046926,-500.0,8.893e-05,2]
[353177104,1739631046935,-500.88802565,8.893e-05,2]
[353177105,1739631046944,-501.68416445,8.893e-05,2]
[353177106,1739631046954,-500.0,8.893e-05,2]
[353177107,1739631046963,-1173.43,8.893e-05,2]
[353177108,1739631046972,-500.90803247,8.893e-05,2]
[353177109,1739631046983,-500.0,8.893e-05,2]
[353177110,1739631046993,-501.39673563,8.893e-05,2]
[353177111,1739631047003,-501.22112975,8.893e-05,2]
[353177112,1739631047013,-500.27430484,8.893e-05,2]
[353177113,1739631047023,-500.0,8.893e-05,2]
[353177114,1739631047033,-500.0,8.893e-05,2]
[353177115,1739631047043,-597.43509873,8.893e-05,2]
[353177116,1739631047053,-247.41635176,8.893e-05,2]
[353177117,1739631047063,-500.76838822,8.893e-05,2]
[353177118,1739631047073,-500.0,8.893e-05,2]
[353177119,1739631047082,-500.0,8.893e-05,2]
[353177120,1739631047092,-502.95732577,8.893e-05,2]
[353177121,1739631047103,-501.54370907,8.893e-05,2]
[353177122,1739631047115,-500.0,8.893e-05,2]
[353177123,1739631047125,-500.83705065,8.893e-05,2]
[353177124,1739631047135,-500.78261074,8.893e-05,2]
[353177125,1739631047144,-500.0,8.893e-05,2]
[353177126,1739631047154,-500.75650848,8.893e-05,2]
[353177127,1739631047163,-500.0,8.893e-05,2]
[353177128,1739631047173,-501.08114798,8.893e-05,2]
[353177129,1739631047183,-500.0,8.893e-05,2]
[353177130,1739631047193,-500.0,8.893e-05,2]
[353177131,1739631047304,-500.0,8.893e-05,2]
[353177132,1739631047316,-500.0,8.893e-05,2]
[353177133,1739631047328,-500.0,8.893e-05,2]
[353177134,1739631047338,-500.0,8.893e-05,2]
[353177135,1739631047348,-500.0,8.893e-05,2]
[353177136,1739631047358,-1228.57,8.893e-05,2]
[353177137,1739631047368,-500.0,8.893e-05,2]
[353177138,1739631047378,-500.0,8.893e-05,2]
[353177139,1739631047387,-500.0,8.893e-05,2]
[353177140,1739631047398,-500.95605645,8.893e-05,2]
[353177141,1739631047407,-371.74068842,8.893e-05,2]
[353177142,1739631047417,-500.0,8.893e-05,2]
[353177143,1739631047427,-500.0,8.893e-05,2]
[353177144,1739631047437,-500.0,8.893e-05,2]
[353177145,1739631047446,-160.94451415,8.893e-05,2]
[353177146,1739631047455,-500.0,8.893e-05,2]
[353177147,1739631047465,-500.62920201,8.893e-05,2]
[353177148,1739631047474,-500.0,8.893e-05,2]
[353177149,1739631047483,-576.55686346,8.893e-05,2]
[353177150,1739631047493,-500.0,8.893e-05,2]
[353177151,1739631047503,-500.0,8.893e-05,2]
[353177152,1739631047513,-500.0,8.893e-05,2]
[353177153,1739631047523,-538.77458769,8.893e-05,2]
[353177154,1739631047533,-613.74878517,8.893e-05,2]
[353177155,1739631047543,-500.0,8.893e-05,2]
[353177156,1739631047552,-500.0,8.893e-05,2]
[353177157,1739631047562,-501.20448747,8.893e-05,2]
[353177158,1739631047572,-502.04784418,8.893e-05,2]
[353177159,1739631047582,-500.0,8.893e-05,2]
[353177160,1739631047592,-500.60237577,8.893e-05,2]
[353177161,1739631047601,-502.61010948,8.893e-05,2]
[353177162,1739631047611,-500.0,8.893e-05,2]
[353177163,1739631047620,-500.0,8.893e-05,2]
[353177164,1739631047631,-2809.58,8.893e-05,2]
[353177165,1739631047640,-500.49199043,8.893e-05,2]
[353177166,1739631047650,-888.0,8.893e-05,2]
[353177167,1739631047659,-888.0,8.893e-05,2]
[353177168,1739631047669,-888.0,8.893e-05,2]
[353177169,1739631047678,-524.79,8.893e-05,2]
[353177170,1739631047689,-888.0,8.893e-05,2]
[353177171,1739631047699,-188.42299104,8.893e-05,2]
[353177172,1739631047709,-505.29478759,8.893e-05,2]
[353177173,1739631047719,-500.0,8.893e-05,2]
[353177174,1739631047729,-500.75638136,8.893e-05,2]
[353177175,1739631047738,-500.0,8.893e-05,2]
[353177176,1739631047748,-501.29958784,8.893e-05,2]
[353177177,1739631047757,-503.88587423,8.893e-05,2]
[353177178,1739631047770,-500.0,8.893e-05,2]
[353177179,1739631047779,-500.0,8.893e-05,2]
[353177180,1739631047789,-500.58152029,8.893e-05,2]
[353177181,1739631047798,-500.0,8.893e-05,2]
[353177182,1739631047808,-500.0,8.893e-05,2]
[353177183,1739631047817,-500.0,8.893e-05,2]
[353177184,1739631047827,-500.48845242,8.893e-05,2]
[353177185,1739631047836,-500.0,8.893e-05,2]
[353177186,1739631047846,-361.82448106,8.893e-05,2]
[353177187,1739631047856,-500.0,8.893e-05,2]
[353177188,1739631047866,-500.0,8.893e-05,2]
[353177189,1739631047875,-500.0,8.893e-05,2]
[353177190,1739631047885,-506.67728189,8.893e-05,2]
[353177191,1739631047895,-500.0,8.893e-05,2]
[353177192,1739631047905,-500.0,8.893e-05,2]
[353177193,1739631047914,-500.0,8.893e-05,2]
[353177194,1739631047924,-500.60115212,8.893e-05,2]
[353177195,1739631047934,-501.22356126,8.893e-05,2]
[353177196,1739631047944,-500.0,8.893e-05,2]
[353177197,1739631047954,-500.65423413,8.893e-05,2]
[353177198,1739631047966,-500.90343283,8.893e-05,2]
[353177199,1739631047976,-500.0,8.893e-05,2]
[353177200,1739631047986,-500.0,8.893e-05,2]
[353177201,1739631047996,-500.0,8.893e-05,2]
[353177202,1739631048006,-501.23909195,8.893e-05,2]
[353177203,1739631048016,-500.0,8.893e-05,2]
[353177204,1739631048026,-500.49299137,8.893e-05,2]
[353177205,1739631048036,-500.0,8.893e-05,2]
[353177206,1739631048047,-500.57702676,8.893e-05,2]
[353177207,1739631048057,-500.53303441,8.893e-05,2]
[353177208,1739631048067,-503.52005542,8.893e-05,2]
[353177209,1739631048078,-500.0,8.893e-05,2]
[353177210,1739631048089,-500.69297386,8.893e-05,2]
[353177211,1739631048099,-669.28,8.893e-05,2]
[353177212,1739631048109,-648.9,8.893e-05,2]
[353177213,1739631048119,-500.0,8.893e-05,2]